[Event "XII Paracin Festival 2019"]
[Site "Paracin"]
[Date "2019.07.11"]
[Round "8.26"]
[White "Harvey, Marcus R"]
[Black "Tadic, Stefan"]
[Result "1-0"]
[ECO "A03"]
[WhiteElo "2402"]
[BlackElo "2262"]
[Annotator "NA"]
[PlyCount "111"]
[EventDate "2019.07.05"]
[EventType "swiss"]
[EventCountry "SRB"]
[SourceTitle "playchess.com"]
[Source "ChessBase"]
[SourceQuality "1"]
[TimeControl "5400+30"]

1. f4 {[%emt 0:03:02]} d5 {[%emt 0:00:42]} 2. Nf3 {[%emt 0:00:03]} c5 {[%emt 0:01:59]} 3. g3 {[%emt 0:00:13]} Nf6 {[%emt 0:01:40]} 4. Bg2 {[%emt 0:00:05]} g6 {[%emt 0:01:03]} 5. O-O {[%emt 0:00:07]} Bg7 {[%emt 0:00:05]} 6. d3 {[%emt 0:00:41]} O-O {[%emt 0:01:26]} 7. c3 {[%emt 0:00:38]} Nc6 {[%emt 0:01:37]} 8. Qc2 {[%emt 0:01:02]} Qb6 {[%emt 0:07:16]} 9. Kh1 {[%emt 0:03:51]} Rd8 {[%emt 0:03:43]} 10. Na3 {[%emt 0:02:09]} Qa6 {[%emt 0:09:26]} 11. e4 {[%emt 0:01:54]} c4 {[%emt 0:13:31]} 12. dxc4 {[%emt 0:01:29]} dxe4 {[%emt 0:20:07]} 13. Ng5 {[%emt 0:01:58]} Na5 {[%emt 0:04:33]} 14. Nxe4 {[%emt 0:08:38]} Nxc4 {[%emt 0:03:51]} 15. Qe2 {[%emt 0:02:19]} Nxa3 {[%emt 0:14:24]} 16. Qxa6 {[%emt 0:00:15]} bxa6 {[%emt 0:00:04]} 17. Nxf6+ {[%emt 0:01:23]} Bxf6 {[%emt 0:00:07]} 18. Bxa8 {[%emt 0:00:04]} Bf5 {[%emt 0:10:04]} 19. g4 {[%emt 0:05:27]} Bd3 {[%emt 0:01:20]} 20. Rd1 {[%emt 0:01:44]} Be4+ {[%emt 0:01:40]} 21. Bxe4 {[%emt 0:00:06]} Rxd1+ {[%emt 0:00:02]} 22. Kg2 {[%emt 0:00:05]} Nc4 {[%emt 0:00:24]} 23. Bf3 {[%emt 0:01:02]} Rd8 {[%emt 0:00:56]} 24. Be2 {[%emt 0:00:34]} Nb6 {[%emt 0:01:10]} 25. a4 {[%emt 0:03:35]} a5 {[%emt 0:00:40]} 26. Ra3 {[%emt 0:00:49]} e5 {[%emt 0:00:31]} 27. fxe5 {[%emt 0:00:51]} Bxe5 {[%emt 0:00:02]} 28. Rb3 {[%emt 0:00:09]} Re8 {[%emt 0:00:47]} 29. Bf3 {[%emt 0:01:00]} Bc7 {[%emt 0:00:46]} 30. Bh6 {[%emt 0:00:55]} f6 {[%emt 0:00:31]} 31. h4 {[%emt 0:03:37]} Kf7 {[%emt 0:00:18]} 32. Bc1 {[%emt 0:08:28]} Re7 {[%emt 0:00:33]} 33. Rb5 {[%emt 0:02:40]} Nxa4 {[%emt 0:00:36]} 34. Bd1 {[%emt 0:00:07]} Nb6 {[%emt 0:00:14]} 35. Rxa5 {[%emt 0:00:46]} Bb8 {[%emt 0:00:18]} 36. Kf2 {[%emt 0:02:21]} Re4 {[%emt 0:00:57]} 37. Bf3 {[%emt 0:01:14]} Re7 {[%emt 0:00:33]} 38. Ra6 {[%emt 0:03:11]} Ke8 {[%emt 0:00:23]} 39. Be3 {[%emt 0:00:21]} Kd8 {[%emt 0:00:34]} 40. Bd4 {[%emt 0:00:10]} Rf7 {[%emt 0:00:31]} 41. Ke2 {[%emt 0:04:59]} Kc7 {[%emt 0:00:31]} 42. Kd3 {[%emt 0:00:17]} f5 {[%emt 0:00:19]} 43. g5 {[%emt 0:00:06]} Rd7 {[%emt 0:00:36]} 44. Kc2 {[%emt 0:02:05]} Re7 {[%emt 0:00:32]} 45. Ra5 {[%emt 0:00:16]} Kc8 {[%emt 0:00:26]} 46. Rc5+ {[%emt 0:03:24]} Bc7 {[%emt 0:00:08]} 47. h5 {[%emt 0:02:39]} Kb8 {[%emt 0:00:20]} 48. hxg6 {[%emt 0:00:20]} hxg6 {[%emt 0:00:10]} 49. Rc6 {[%emt 0:00:04]} Nd7 {[%emt 0:01:13]} 50. Rxg6 {[%emt 0:00:11]} Bb6 {[%emt 0:00:23]} 51. Rg7 {[%emt 0:01:25]} Rxg7 {[%emt 0:00:24]} 52. Bxg7 {[%emt 0:00:06]} Kc7 {[%emt 0:00:57]} 53. g6 {[%emt 0:00:17]} Kd6 {[%emt 0:00:30]} 54. c4 {[%emt 0:01:20]} Ke7 {[%emt 0:00:26]} 55. Bc3 {[%emt 0:00:24]} Nf6 {[%emt 0:00:37]} 56. g7 {[%emt 0:00:12]} 1-0

[Event "XII Paracin Festival 2019"]
[Site "Paracin"]
[Date "2019.07.11"]
[Round "8.27"]
[White "Holland, James P"]
[Black "Martic, Ivan"]
[Result "1/2-1/2"]
[ECO "B80"]
[WhiteElo "2263"]
[BlackElo "2392"]
[Annotator "NA"]
[PlyCount "42"]
[EventDate "2019.07.05"]
[EventType "swiss"]
[EventCountry "SRB"]
[SourceTitle "playchess.com"]
[Source "ChessBase"]
[SourceQuality "1"]
[TimeControl "5400+30"]

1. e4 c5 2. Nf3 d6 3. d4 cxd4 4. Nxd4 Nf6 5. Nc3 e6 6. g3 Nc6 7. Bg2 Bd7 8. O-O a6 9. Re1 Be7 10. a4 O-O 11. b3 Rc8 12. Bb2 Qc7 13. Qd3 Nxd4 14. Qxd4 e5 15. Qe3 Rfd8 16. Re2 b6 17. Qd3 Qb7 18. Rae1 b5 19. axb5 axb5 20. Nd5 Nxd5 21. exd5 b4 1/2-1/2

[Event "XII Paracin Festival 2019"]
[Site "Paracin"]
[Date "2019.07.11"]
[Round "8.28"]
[White "Popovic, Aleksandar M"]
[Black "Liu, Zhaoqi"]
[Result "0-1"]
[ECO "C03"]
[WhiteElo "2234"]
[BlackElo "2386"]
[Annotator "NA"]
[PlyCount "50"]
[EventDate "2019.07.05"]
[EventType "swiss"]
[EventCountry "SRB"]
[SourceTitle "playchess.com"]
[Source "ChessBase"]
[SourceQuality "1"]
[TimeControl "5400+30"]

1. e4 {[%emt 0:00:00]} e6 {[%emt 0:01:27]} 2. d4 {[%emt 0:02:17]} d5 {[%emt 0:00:07]} 3. Nd2 {[%emt 0:00:04]} Be7 {[%emt 0:00:05]} 4. Bd3 {[%emt 0:00:34]} c5 {[%emt 0:00:07]} 5. Ngf3 {[%emt 0:01:36]} Nf6 {[%emt 0:01:29]} 6. c3 {[%emt 0:03:42]} cxd4 {[%emt 0:01:28]} 7. Nxd4 {[%emt 0:02:18]} e5 {[%emt 0:04:37]} 8. N4f3 {[%emt 0:00:10]} Nc6 {[%emt 0:00:23]} 9. O-O {[%emt 0:12:50]} O-O {[%emt 0:00:13]} 10. Qc2 {[%emt 0:04:21]} Bg4 {[%emt 0:09:35]} 11. Re1 {[%emt 0:14:13]} Rc8 {[%emt 0:12:03]} 12. exd5 {[%emt 0:03:34]} Qxd5 {[%emt 0:00:16]} 13. Bc4 {[%emt 0:03:07]} Qd7 {[%emt 0:14:42]} 14. Bb5 {[%emt 0:08:57]} Bf5 {[%emt 0:19:32]} 15. Qa4 {[%emt 0:04:24]} Bd6 {[%emt 0:02:45]} 16. Nc4 {[%emt 0:13:29]} e4 {[%emt 0:02:30]} 17. Nfe5 {[%emt 0:04:28]} Bxe5 {[%emt 0:01:11]} 18. Nxe5 {[%emt 0:00:06]} Qc7 {[%emt 0:00:44]} 19. Nxc6 {[%emt 0:01:51]} bxc6 {[%emt 0:00:06]} 20. Ba6 {[%emt 0:01:58]} Ng4 {[%emt 0:02:03]} 21. g3 {[%emt 0:00:08]} Ne5 {[%emt 0:00:59]} 22. Bf4 {[%emt 0:02:45]} Nf3+ {[%emt 0:02:17]} 23. Kh1 {[%emt 0:00:05]} Qb6 {[%emt 0:02:07]} 24. g4 {[%emt 0:03:04]} Nxe1 {[%emt 0:01:19]} 25. Rxe1 {[%emt 0:01:24]} Bxg4 {[%emt 0:00:48]} 0-1

[Event "XII Paracin Festival 2019"]
[Site "Paracin"]
[Date "2019.07.11"]
[Round "8.29"]
[White "Vafin, Ayrat"]
[Black "Nie, Xinyang"]
[Result "1-0"]
[ECO "A06"]
[WhiteElo "2213"]
[BlackElo "2375"]
[Annotator "NA"]
[PlyCount "77"]
[EventDate "2019.07.05"]
[EventType "swiss"]
[EventCountry "SRB"]
[SourceTitle "playchess.com"]
[Source "ChessBase"]
[SourceQuality "1"]
[TimeControl "5400+30"]

1. Nf3 {[%emt 0:00:00]} d5 {[%emt 0:00:00]} 2. g3 {[%emt 0:00:00]} Bg4 {[%emt 0:00:00]} 3. Bg2 {[%emt 0:00:02]} Nd7 {[%emt 0:00:00]} 4. d4 {[%emt 0:00:17]} Ngf6 {[%emt 0:00:44]} 5. O-O {[%emt 0:00:36]} e6 {[%emt 0:00:10]} 6. Nbd2 {[%emt 0:00:07]} c6 {[%emt 0:01:23]} 7. Re1 {[%emt 0:00:11]} Be7 {[%emt 0:01:52]} 8. e4 {[%emt 0:00:06]} dxe4 {[%emt 0:00:54]} 9. Nxe4 {[%emt 0:00:05]} h6 {[%emt 0:03:47]} 10. c3 {[%emt 0:00:37]} Qa5 {[%emt 0:03:05]} 11. Nxf6+ {[%emt 0:03:17]} Bxf6 {[%emt 0:00:24]} 12. h3 {[%emt 0:01:08]} Bh5 {[%emt 0:01:16]} 13. Qb3 {[%emt 0:00:59]} O-O-O {[%emt 0:00:47]} 14. Nd2 {[%emt 0:00:36]} g5 {[%emt 0:01:15]} 15. Nc4 {[%emt 0:02:19]} Qc7 {[%emt 0:00:06]} 16. Qa3 {[%emt 0:08:11]} Kb8 {[%emt 0:01:31]} 17. Be3 {[%emt 0:03:59]} a6 {[%emt 0:03:28]} 18. b4 {[%emt 0:04:25]} e5 {[%emt 0:03:33]} 19. d5 {[%emt 0:25:53]} cxd5 {[%emt 0:05:55]} 20. Bxd5 {[%emt 0:00:04]} Nc5 {[%emt 0:00:02]} 21. bxc5 {[%emt 0:05:24]} Rxd5 {[%emt 0:00:06]} 22. Rab1 {[%emt 0:00:36]} Bg6 {[%emt 0:04:00]} 23. Rb6 {[%emt 0:04:07]} Be7 {[%emt 0:02:56]} 24. Qxa6 {[%emt 0:14:20]} Bd3 {[%emt 0:00:04]} 25. c6 {[%emt 0:00:48]} Qxc6 {[%emt 0:00:02]} 26. Na5 {[%emt 0:00:21]} Rxa5 {[%emt 0:02:39]} 27. Qxa5 {[%emt 0:00:18]} Qc7 {[%emt 0:00:07]} 28. Qa4 {[%emt 0:04:22]} f5 {[%emt 0:04:00]} 29. Re6 {[%emt 0:02:35]} Bd6 {[%emt 0:01:08]} 30. Re8+ {[%emt 0:03:06]} Rxe8 {[%emt 0:00:02]} 31. Qxe8+ {[%emt 0:00:05]} Qc8 {[%emt 0:00:04]} 32. Ba7+ {[%emt 0:00:32]} Kc7 {[%emt 0:00:00]} 33. Bb6+ {[%emt 0:00:35]} Kb8 {[%emt 0:00:01]} 34. Rxe5 {[%emt 0:01:03]} Bxe5 {[%emt 0:00:01]} 35. Ba7+ {[%emt 0:00:34]} Kc7 {[%emt 0:00:41]} 36. Qxe5+ {[%emt 0:00:12]} Kd8 {[%emt 0:00:03]} 37. Bb6+ {[%emt 0:00:11]} Kd7 {[%emt 0:00:04]} 38. Qd5+ {[%emt 0:00:06]} Ke8 {[%emt 0:00:05]} 39. Qxd3 {[%emt 0:00:05]} 1-0

[Event "XII Paracin Festival 2019"]
[Site "Paracin"]
[Date "2019.07.11"]
[Round "8.30"]
[White "Tanriverdi, Enes"]
[Black "Sahil, Tickoo"]
[Result "1-0"]
[ECO "D37"]
[WhiteElo "2374"]
[BlackElo "2187"]
[Annotator "NA"]
[PlyCount "113"]
[EventDate "2019.07.05"]
[EventType "swiss"]
[EventCountry "SRB"]
[SourceTitle "playchess.com"]
[Source "ChessBase"]
[SourceQuality "1"]
[TimeControl "5400+30"]

1. d4 {[%emt 0:00:00]} d5 {[%emt 0:01:19]} 2. c4 {[%emt 0:00:00]} e6 {[%emt 0:00:06]} 3. Nc3 {[%emt 0:00:00]} Be7 {[%emt 0:00:14]} 4. Nf3 {[%emt 0:00:00]} Nf6 {[%emt 0:00:06]} 5. Bf4 {[%emt 0:00:00]} O-O {[%emt 0:00:13]} 6. e3 {[%emt 0:00:03]} b6 {[%emt 0:00:09]} 7. Bd3 {[%emt 0:00:07]} c5 {[%emt 0:00:06]} 8. dxc5 {[%emt 0:00:14]} bxc5 {[%emt 0:00:47]} 9. cxd5 {[%emt 0:00:38]} exd5 {[%emt 0:17:52]} 10. O-O {[%emt 0:00:13]} Nc6 {[%emt 0:00:24]} 11. Rc1 {[%emt 0:01:26]} h6 {[%emt 0:07:11]} 12. h3 {[%emt 0:00:06]} Be6 {[%emt 0:01:56]} 13. Qe2 {[%emt 0:00:23]} c4 {[%emt 0:23:32]} 14. Bb1 {[%emt 0:03:11]} d4 {[%emt 0:00:01]} 15. exd4 {[%emt 0:00:42]} Nxd4 {[%emt 0:00:01]} 16. Nxd4 {[%emt 0:00:28]} Qxd4 {[%emt 0:00:02]} 17. Be5 {[%emt 0:00:22]} Qh4 {[%emt 0:04:01]} 18. Nb5 {[%emt 0:02:20]} Rac8 {[%emt 0:24:02]} 19. Nc7 {[%emt 0:01:00]} Rxc7 {[%emt 0:00:43]} 20. Bxc7 {[%emt 0:00:14]} Bc5 {[%emt 0:04:25]} 21. Be5 {[%emt 0:08:08]} Qg5 {[%emt 0:01:41]} 22. Rc3 {[%emt 0:06:23]} Nd7 {[%emt 0:04:20]} 23. Bg3 {[%emt 0:01:26]} Bb6 {[%emt 0:04:26]} 24. Rd1 {[%emt 0:01:11]} Nf6 {[%emt 0:01:03]} 25. Qe5 {[%emt 0:01:01]} Rc8 {[%emt 0:00:02]} 26. Qxg5 {[%emt 0:00:38]} hxg5 {[%emt 0:00:01]} 27. Be5 {[%emt 0:00:21]} Nd5 {[%emt 0:00:24]} 28. Rf3 {[%emt 0:03:22]} f6 {[%emt 0:01:45]} 29. Bd4 {[%emt 0:00:17]} g4 {[%emt 0:01:44]} 30. Bf5 {[%emt 0:00:32]} Bxf5 {[%emt 0:00:32]} 31. Rxf5 {[%emt 0:00:02]} Ne7 {[%emt 0:00:09]} 32. Rf4 {[%emt 0:01:08]} Rd8 {[%emt 0:00:18]} 33. Rd2 {[%emt 0:05:07]} g3 {[%emt 0:01:32]} 34. Be3 {[%emt 0:01:43]} gxf2+ {[%emt 0:01:17]} 35. Kf1 {[%emt 0:00:11]} Rb8 {[%emt 0:00:34]} 36. Bxb6 {[%emt 0:00:22]} axb6 {[%emt 0:00:19]} 37. Rxc4 {[%emt 0:00:11]} Nf5 {[%emt 0:00:37]} 38. Kxf2 {[%emt 0:00:06]} Rb7 {[%emt 0:00:07]} 39. g4 {[%emt 0:00:18]} Ne7 {[%emt 0:00:04]} 40. a4 {[%emt 0:00:16]} Ng6 {[%emt 0:00:04]} 41. Rb4 {[%emt 0:01:10]} Ra7 {[%emt 0:00:14]} 42. b3 {[%emt 0:00:06]} Rc7 {[%emt 0:00:15]} 43. Rc4 {[%emt 0:00:56]} Rf7 {[%emt 0:00:16]} 44. Rc6 {[%emt 0:00:31]} Nf4 {[%emt 0:00:49]} 45. Rxb6 {[%emt 0:01:24]} Nxh3+ {[%emt 0:00:06]} 46. Ke3 {[%emt 0:00:13]} Ng5 {[%emt 0:00:16]} 47. Rd8+ {[%emt 0:00:50]} Kh7 {[%emt 0:00:01]} 48. a5 {[%emt 0:00:23]} Re7+ {[%emt 0:00:50]} 49. Kd3 {[%emt 0:00:12]} Ne6 {[%emt 0:00:11]} 50. Rdd6 {[%emt 0:00:52]} Nf4+ {[%emt 0:00:18]} 51. Kc4 {[%emt 0:00:06]} Re2 {[%emt 0:01:38]} 52. a6 {[%emt 0:00:16]} Ra2 {[%emt 0:00:28]} 53. Rb7 {[%emt 0:00:25]} Rc2+ {[%emt 0:00:28]} 54. Kb5 {[%emt 0:00:09]} Rc3 {[%emt 0:00:05]} 55. b4 {[%emt 0:00:10]} Ne2 {[%emt 0:00:44]} 56. a7 {[%emt 0:00:15]} Ra3 {[%emt 0:00:09]} 57. Rc7 {[%emt 0:00:14]} 1-0

[Event "XII Paracin Festival 2019"]
[Site "Paracin"]
[Date "2019.07.12"]
[Round "9.2"]
[White "Korpa, Bence"]
[Black "Svetushkin, Dmitry"]
[Result "1/2-1/2"]
[ECO "A07"]
[WhiteElo "2523"]
[BlackElo "2528"]
[Annotator "ChessBase"]
[PlyCount "89"]
[EventDate "2019.07.05"]
[EventType "swiss"]
[EventCountry "SRB"]
[SourceTitle "playchess.com"]
[Source "ChessBase"]
[SourceQuality "1"]
[TimeControl "5400+30"]

1. Nf3 {[%emt 0:02:08]} d5 {[%emt 0:00:00]} 2. g3 {[%emt 0:00:07]} c6 {[%emt 0:00:02]} 3. Bg2 {[%emt 0:00:06]} Bg4 {[%emt 0:00:05]} 4. O-O {[%emt 0:00:19]} Nf6 {[%emt 0:00:21]} 5. h3 {[%emt 0:00:25]} Bh5 {[%emt 0:00:09]} 6. d4 {[%emt 0:00:15]} e6 {[%emt 0:00:08]} 7. c4 {[%emt 0:00:12]} Be7 {[%emt 0:00:07]} 8. Nc3 {[%emt 0:01:50]} Nbd7 {[%emt 0:02:02]} 9. cxd5 {[%emt 0:00:43]} cxd5 {[%emt 0:00:08]} 10. Qb3 {[%emt 0:00:29]} Qb6 {[%emt 0:01:07]} 11. Ne5 {[%emt 0:01:02]} Nxe5 {[%emt 0:07:03]} 12. dxe5 {[%emt 0:00:07]} Nd7 {[%emt 0:00:15]} 13. Be3 {[%emt 0:00:22]} Bc5 {[%emt 0:11:47]} 14. Bxc5 {[%emt 0:10:28]} Nxc5 {[%emt 0:00:07]} 15. Qxb6 {[%emt 0:15:30]} axb6 {[%emt 0:00:04]} 16. g4 {[%emt 0:13:11]} Bg6 {[%emt 0:04:28]} 17. f4 h5 18. b4 {[%emt 0:16:20]} Nd7 {[%emt 0:16:13]} 19. e4 {[%emt 0:18:14]} hxg4 {[%emt 0:01:16]} 20. exd5 {[%emt 0:01:01]} gxh3 {[%emt 0:00:27]} 21. Bf3 {[%emt 0:00:53]} h2+ {[%emt 0:07:18]} 22. Kh1 {[%emt 0:00:16]} exd5 {[%emt 0:17:35]} 23. Nxd5 {[%emt 0:02:56]} Ra3 {[%emt 0:03:50]} 24. Rac1 {[%emt 0:07:01]} Kd8 {[%emt 0:00:31]} 25. Bg2 {[%emt 0:00:20]} Bf5 {[%emt 0:08:07]} 26. Rfd1 {[%emt 0:01:17]} Rd3 {[%emt 0:04:56]} 27. Rxd3 {[%emt 0:01:10]} Bxd3 {[%emt 0:00:02]} 28. Rd1 {[%emt 0:04:27]} Bf5 {[%emt 0:04:41]} 29. Ne3 {[%emt 0:00:41]} Bh3 {[%emt 0:03:40]} 30. Bxb7 {[%emt 0:00:03]} Rh4 {[%emt 0:01:43]} 31. Rc1 {[%emt 0:00:46]} g6 {[%emt 0:02:40]} 32. Rc8+ {[%emt 0:02:02]} Ke7 {[%emt 0:00:03]} 33. Nd5+ {[%emt 0:00:24]} Ke6 {[%emt 0:00:07]} 34. Ne3 {[%emt 0:00:06]} Ke7 {[%emt 0:01:11]} 35. Nd5+ {[%emt 0:00:28]} Ke6 {[%emt 0:00:03]} 36. Kxh2 {[%emt 0:00:27]} g5 {[%emt 0:02:44]} 37. Kg3 {[%emt 0:00:15]} f6 {[%emt 0:01:27]} 38. exf6 {[%emt 0:01:23]} Bf5 {[%emt 0:01:02]} 39. fxg5 {[%emt 0:00:56]} Rg4+ {[%emt 0:00:07]} 40. Kf2 {[%emt 0:00:06]} Rxg5 {[%emt 0:00:14]} 41. Re8+ {[%emt 0:00:36]} Kf7 {[%emt 0:01:39]} 42. Re7+ {[%emt 0:00:11]} Kf8 {[%emt 0:00:01]} 43. Re3 {[%emt 0:00:42]} Bb1 {[%emt 0:00:39]} 44. Bc6 {[%emt 0:00:40]} Ne5 {[%emt 0:00:48]} 45. Nxb6 {[%emt 0:00:59]} 1/2-1/2

[Event "XII Paracin Festival 2019"]
[Site "Paracin"]
[Date "2019.07.12"]
[Round "9.3"]
[White "Tan, Justin"]
[Black "Bashirli, Nail"]
[Result "0-1"]
[ECO "E41"]
[WhiteElo "2513"]
[BlackElo "2367"]
[Annotator "ChessBase"]
[PlyCount "140"]
[EventDate "2019.07.05"]
[EventType "swiss"]
[EventCountry "SRB"]
[SourceTitle "playchess.com"]
[Source "ChessBase"]
[SourceQuality "1"]
[TimeControl "5400+30"]

1. d4 Nf6 2. c4 e6 3. Nc3 Bb4 4. e3 c5 5. Bd3 d5 6. cxd5 exd5 7. dxc5 O-O 8. Nge2 Nc6 9. O-O Bxc5 10. b3 Re8 11. Bb2 Bg4 12. h3 Bh5 13. Qd2 Ne4 14. Nxe4 dxe4 15. Qc3 Bf8 16. Bc4 Ne5 17. Nf4 Qg5 18. Kh1 Rac8 19. Qa5 Rc5 20. Qa4 Nc6 21. g4 Bg6 22. Be2 Ra5 23. Qc4 Rc5 24. Qa4 Bd6 25. Ba3 Ra5 26. Bxd6 Rxa4 27. bxa4 Ne5 28. Rfd1 Nd3 29. Kg2 Qf6 30. Bc7 Rc8 31. Bxd3 exd3 32. Rac1 Be4+ 33. f3 Bc6 34. Ba5 h6 35. Nd5 Qb2+ 36. Bd2 Re8 37. Rb1 Qxa2 38. Nc3 Qe6 39. e4 Rc8 40. a5 Qe5 41. Ra1 Bd7 42. Rdc1 Rc4 43. Ra3 Rb4 44. Nd1 Rxe4 45. fxe4 Qxe4+ 46. Kg3 Qe2 47. Ra2 Be6 48. Nc3 Qe5+ 49. Bf4 Qd4 50. Rf2 b6 51. axb6 axb6 52. Bd2 Qd6+ 53. Bf4 Qd4 54. Bd2 Bc4 55. Rf4 Qe5 56. Re1 Qb8 57. Kg2 b5 58. Rb1 Qa8+ 59. Kf2 Qa7+ 60. Kg2 Qb7+ 61. Kf2 Qb6+ 62. Kg2 Qc6+ 63. Kg3 Qd6 64. Kg2 Kh7 65. h4 Qc6+ 66. Kg3 Qc5 67. h5 Qe5 68. Kh3 Qc5 69. Rf5 Qe7 70. Rf4 b4 0-1

[Event "XII Paracin Festival 2019"]
[Site "Paracin"]
[Date "2019.07.12"]
[Round "9.4"]
[White "Song, Raymond"]
[Black "Gadimbayli, Abdulla"]
[Result "1-0"]
[ECO "C10"]
[WhiteElo "2456"]
[BlackElo "2414"]
[Annotator "RC"]
[PlyCount "71"]
[EventDate "2019.07.05"]
[EventType "swiss"]
[EventCountry "SRB"]
[SourceTitle "playchess.com"]
[Source "ChessBase"]
[SourceQuality "1"]
[TimeControl "5400+30"]

1. e4 {[%emt 0:00:00]} e6 {[%emt 0:10:44]} 2. d4 {[%emt 0:00:00]} d5 {[%emt 0:00:04]} 3. Nc3 {[%emt 0:00:00]} h6 {[%emt 0:00:04]} 4. a3 {[%emt 0:00:00]} dxe4 {[%emt 0:10:00]} 5. Nxe4 {[%emt 0:00:00]} Bd7 {[%emt 0:00:04]} 6. Nf3 {[%emt 0:00:29]} Bc6 {[%emt 0:03:50]} 7. Bd3 {[%emt 0:00:36]} Nd7 {[%emt 0:00:06]} 8. O-O {[%emt 0:00:26]} Ngf6 {[%emt 0:00:28]} 9. Ng3 {[%emt 0:00:59]} Bd6 {[%emt 0:06:47]} 10. Re1 {[%emt 0:00:13]} Bxg3 {[%emt 0:12:27]} 11. hxg3 {[%emt 0:00:03]} O-O {[%emt 0:00:06]} 12. c4 {[%emt 0:02:34]} b6 {[%emt 0:09:52]} 13. Bf4 {[%emt 0:00:57]} Bb7 {[%emt 0:02:58]} 14. Qd2 {[%emt 0:00:36]} Ng4 {[%emt 0:03:01]} 15. Bc2 {[%emt 0:02:20]} Re8 {[%emt 0:06:36]} 16. Rad1 {[%emt 0:00:17]} Nf8 {[%emt 0:10:16]} 17. Qc3 {[%emt 0:00:08]} Qd7 {[%emt 0:01:44]} 18. b4 {[%emt 0:01:44]} a5 {[%emt 0:02:33]} 19. b5 {[%emt 0:00:55]} c6 {[%emt 0:08:54]} 20. bxc6 {[%emt 0:01:08]} Bxc6 {[%emt 0:01:24]} 21. Qb3 {[%emt 0:04:18]} b5 {[%emt 0:03:27]} 22. cxb5 {[%emt 0:00:04]} Bd5 {[%emt 0:02:19]} 23. Qb2 {[%emt 0:00:12]} Qb7 {[%emt 0:00:29]} 24. b6 {[%emt 0:00:52]} Nd7 {[%emt 0:01:46]} 25. Rb1 {[%emt 0:00:31]} Rec8 {[%emt 0:01:48]} 26. Bc7 {[%emt 0:00:19]} Ndf6 {[%emt 0:00:40]} 27. Ba4 {[%emt 0:01:50]} Ne4 {[%emt 0:00:24]} 28. Re2 {[%emt 0:01:16]} Rxc7 {[%emt 0:00:21]} 29. bxc7 {[%emt 0:00:07]} Qxc7 {[%emt 0:00:03]} 30. Rc2 {[%emt 0:04:33]} Qe7 {[%emt 0:00:53]} 31. Ne5 {[%emt 0:00:27]} Nxe5 {[%emt 0:00:13]} 32. dxe5 {[%emt 0:00:02]} Nc5 {[%emt 0:00:01]} 33. Rbc1 {[%emt 0:02:19]} Nxa4 {[%emt 0:01:32]} 34. Rc8+ {[%emt 0:00:06]} Kh7 {[%emt 0:00:32]} 35. Qb1+ {[%emt 0:00:39]} g6 {[%emt 0:00:01]} 36. R1c7 {[%emt 0:00:13]} 1-0

[Event "XII Paracin Festival 2019"]
[Site "Paracin"]
[Date "2019.07.12"]
[Round "9.8"]
[White "Janzelj, Tim"]
[Black "Asadli, Vugar"]
[Result "1/2-1/2"]
[ECO "E20"]
[WhiteElo "2416"]
[BlackElo "2502"]
[Annotator "ChessBase"]
[PlyCount "118"]
[EventDate "2019.07.05"]
[EventType "swiss"]
[EventCountry "SRB"]
[SourceTitle "playchess.com"]
[Source "ChessBase"]
[SourceQuality "1"]
[TimeControl "5400+30"]

1. d4 {[%emt 0:01:17]} Nf6 {[%emt 0:00:00]} 2. c4 {[%emt 0:00:26]} e6 {[%emt 0:00:07]} 3. Nc3 {[%emt 0:00:22]} Bb4 {[%emt 0:00:04]} 4. Bd2 {[%emt 0:01:47]} O-O {[%emt 0:04:16]} 5. Nf3 {[%emt 0:00:17]} b6 {[%emt 0:02:08]} 6. e3 {[%emt 0:01:04]} Bb7 {[%emt 0:03:08]} 7. Bd3 {[%emt 0:00:28]} d6 {[%emt 0:01:26]} 8. O-O {[%emt 0:03:52]} Nbd7 {[%emt 0:01:53]} 9. a3 {[%emt 0:08:56]} Bxc3 {[%emt 0:00:06]} 10. Bxc3 {[%emt 0:00:01]} Qe7 {[%emt 0:09:11]} 11. Nd2 {[%emt 0:07:09]} c5 {[%emt 0:01:57]} 12. Re1 {[%emt 0:14:17]} Rfd8 {[%emt 0:00:49]} 13. e4 {[%emt 0:00:32]} cxd4 {[%emt 0:00:57]} 14. Bxd4 {[%emt 0:00:02]} e5 {[%emt 0:01:12]} 15. Bc3 {[%emt 0:00:42]} Nc5 {[%emt 0:00:42]} 16. Bc2 {[%emt 0:00:09]} Rac8 {[%emt 0:01:09]} 17. a4 {[%emt 0:03:05]} a5 {[%emt 0:00:53]} 18. f3 {[%emt 0:02:10]} Ne6 {[%emt 0:04:14]} 19. Qe2 {[%emt 0:07:37]} Nd7 {[%emt 0:07:14]} 20. Qf2 {[%emt 0:02:56]} Nf4 {[%emt 0:04:16]} 21. Rad1 {[%emt 0:00:09]} g6 {[%emt 0:01:42]} 22. Kh1 {[%emt 0:00:31]} h5 {[%emt 0:02:46]} 23. b3 {[%emt 0:03:35]} h4 {[%emt 0:00:40]} 24. Nf1 {[%emt 0:00:16]} Kg7 {[%emt 0:05:13]} 25. Ne3 {[%emt 0:00:35]} Nc5 {[%emt 0:07:10]} 26. Rd2 {[%emt 0:03:33]} Rh8 {[%emt 0:02:32]} 27. Ng4 {[%emt 0:02:39]} f6 {[%emt 0:00:10]} 28. Ne3 {[%emt 0:00:47]} Rcd8 {[%emt 0:01:29]} 29. Rb1 {[%emt 0:00:37]} Bc6 {[%emt 0:00:44]} 30. Ba1 {[%emt 0:05:07]} Qc7 {[%emt 0:01:38]} 31. Qf1 {[%emt 0:00:51]} Na6 {[%emt 0:01:28]} 32. Bc3 {[%emt 0:00:52]} Bb7 {[%emt 0:01:05]} 33. Rbd1 {[%emt 0:01:47]} Kf7 {[%emt 0:02:05]} 34. Bb2 {[%emt 0:02:11]} Nb4 {[%emt 0:01:59]} 35. Bb1 {[%emt 0:01:03]} Ne6 {[%emt 0:03:27]} 36. Bc3 {[%emt 0:03:59]} Qc5 {[%emt 0:02:39]} 37. Qe1 {[%emt 0:03:39]} h3 {[%emt 0:05:44]} 38. g3 {[%emt 0:00:14]} Ng5 {[%emt 0:02:34]} 39. Qe2 {[%emt 0:00:49]} f5 {[%emt 0:01:42]} 40. Nd5 {[%emt 0:00:27]} Bxd5 {[%emt 0:00:36]} 41. exd5 {[%emt 0:00:01]} Rhe8 {[%emt 0:01:19]} 42. Rf1 {[%emt 0:08:20]} Nh7 {[%emt 0:01:12]} 43. Qe1 {[%emt 0:00:52]} Nf6 {[%emt 0:01:33]} 44. Re2 {[%emt 0:00:43]} Rh8 {[%emt 0:00:51]} 45. f4 {[%emt 0:04:30]} e4 {[%emt 0:00:37]} 46. g4 {[%emt 0:00:39]} Nxg4 {[%emt 0:01:09]} 47. Rxe4 {[%emt 0:02:35]} Nxd5 {[%emt 0:00:56]} 48. Bd4 {[%emt 0:01:34]} Qc6 {[%emt 0:00:14]} 49. cxd5 {[%emt 0:00:36]} Qxd5 {[%emt 0:00:02]} 50. Bd3 {[%emt 0:00:51]} Rc8 {[%emt 0:01:58]} 51. Bc4 {[%emt 0:00:50]} Rxc4 {[%emt 0:00:03]} 52. bxc4 {[%emt 0:00:03]} Qc6 {[%emt 0:00:02]} 53. Bxh8 {[%emt 0:00:43]} fxe4 {[%emt 0:00:02]} 54. Qe2 {[%emt 0:01:18]} e3+ {[%emt 0:00:35]} 55. Kg1 {[%emt 0:00:06]} Nf2 {[%emt 0:00:16]} 56. Rxf2 {[%emt 0:00:14]} exf2+ {[%emt 0:00:01]} 57. Kxf2 {[%emt 0:00:34]} Qg2+ {[%emt 0:00:16]} 58. Ke3 {[%emt 0:00:22]} Qg1+ {[%emt 0:00:04]} 59. Kf3 {[%emt 0:00:11]} Qh1+ {[%emt 0:11:18] Ke4} 1/2-1/2